Cogmind - Beta 15 @@@ ROGUE MODE // 2025.05.23 @ 08:06:22 Player: McSaucyNugget Result: Destroyed by OL-OHT(R) with Subdweller Beam Cannon Performance ------------- Evolutions (0) 0 Regions Visited (2) 400 Robots Destroyed (15) 75 Value Destroyed (283) 283 Prototype IDs (0) 0 Alien Tech Used (0) 0 Bonus (0) 0 TOTAL SCORE: 758 Bonus ------- None Cogmind --------- Core Integrity 0/250 Matter 295/300 Energy 100/100 System Corruption 0% Temperature Cool (15) Movement Walking (120) Location -10/Subcaves Parts ------- > --- POWER (1) -------- (None) > --- PROPULSION (2) --- Aluminum Leg > --- UTILITY (2) ------ Power Shielding > --- WEAPON (2) ------- Light Assault Rifle Hammer > --- INVENTORY (5) ---- Wheel Wheel Medium Storage Unit Peak State ------------ > --- POWER ------------ Light Ion Engine > --- PROPULSION ------- Light Treads Light Treads > --- UTILITY ---------- Small Storage Unit Targeting Computer > --- WEAPON ----------- Light Assault Rifle Light Assault Rifle > --- INVENTORY -------- Light Ion Engine Aluminum Leg Aluminum Leg Light Assault Rifle [Rating: 7] Favorites ----------- Power Light Ion Engine Engine Light Ion Engine Propulsion Light Treads Treads Light Treads Leg Aluminum Leg Utility Large Storage Unit Device Sensor Array Storage Large Storage Unit Processor Targeting Computer Protection Power Shielding Weapon Light Assault Rifle Ballistic Gun Light Assault Rifle Impact Weapon Hammer Build | -11 -10 -10 ------- Run | Yrd Mat Sub Slots Evolved . | . . . Power . | . . . Propulsion . | . . . Utility . | . . . Weapon . | . . . Parts Attached 16 | 6 2 8 Power 2 | 1 . 1 Engine 2 | 1 . 1 Core . | . . . Reactor . | . . . Propulsion 4 | 2 . 2 Treads 2 | 2 . . Leg 2 | . . 2 Wheel . | . . . Hover . | . . . Flight . | . . . Utility 5 | 1 2 2 Device 1 | . . 1 Storage 2 | 1 1 . Processor 1 | . 1 . Hackware . | . . . Protection 1 | . . 1 Artifact . | . . . Weapon 5 | 2 . 3 Energy Gun . | . . . Energy Cannon . | . . . Ballistic Gun 4 | 2 . 2 Ballistic Cannon . | . . . Launcher . | . . . Special Weapon . | . . . Impact Weapon 1 | . . 1 Slashing Weapon . | . . . Piercing Weapon . | . . . Special Melee Weapon . | . . . Unidentified Prototypes . | . . . Parts Lost 8 | . . 8 Power 2 | . . 2 Propulsion 2 | . . 2 Utility 1 | . . 1 Weapon 3 | . . 3 Highest Loss Streak 5 | . . 5 To Critical Strikes . | . . . Average Backups 6 | 2 6 7 Power . | . 1 . Propulsion 1 | 1 2 1 Utility 2 | . 2 2 Weapon 1 | . 1 2 Tool/Special . | . . . Unused Backups 3 | . . 3 Power . | . . . Propulsion 2 | . . 2 Utility 1 | . . 1 Weapon . | . . . Tool/Special . | . . . Average Slot Usage (%) 94 | . 97 89 Engine 13 | . 14 13 Treads 24 | . 28 19 Leg 3 | . . 8 Device 2 | . . 6 Storage 12 | . 14 10 Processor 8 | . 11 3 Ballistic Gun 27 | . 28 26 Peak Build Rating 7 | 6 7 7 Average Rating 6 | 4 6 6 On Entrance 4 | . 6 7 Naked Turns . | . . . Heaviest Build 26 | 10 25 26 Greatest Support 40 | 40 40 40 Greatest Overweight (x) 1 | . . 1 Average Overweight (x) . | . . . Largest Inventory Capacity 15 | 8 15 15 Average Capacity 11 | 6 11 12 Most Carried 10 | 3 9 10 Average Carried 6 | 2 6 7 Final Capacity 15 | 8 15 5 Final Carried 9 | 3 9 3 Class Distribution -------------------- 100% | Mutant Dominant Class ---------------- Mutant | -10/Materials Mutant | -10/Subcaves Resources | -11 -10 -10 ----------- Run | Yrd Mat Sub Matter Collected 458 | 235 95 128 Remotely . | . . . Salvage Created 373 | . 264 109 Parts 30 | . 18 12 Haulers Intercepted . | . . . Recyclers Shooed . | . . . Parts Field Recycled . | . . . Retrieved Matter . | . . . Parts Self-Destructed 16 | . . 16 Prevented . | . . . Kills | -11 -10 -10 ------- Run | Yrd Mat Sub Combat Hostiles Destroyed 15 | . 8 7 Guns 15 | . 8 7 Classes Destroyed 2 | . 2 . Swarmer 10 | . 3 7 Grunt 5 | . 5 . Best Kill Streak 4 | . 3 4 Combat Bots Only 4 | . 3 4 Max Kills in Single Turn 2 | . 1 2 Gunslinging . | . . . Exploded . | . . . Melee . | . . . Uniques/NPCs Destroyed . | . . . Combat | -11 -10 -10 -------- Run | Yrd Mat Sub Hostile Shots Fired 174 | . 29 145 Missed 70 | . 13 57 Hits 104 | . 16 88 Projectile 104 | . 16 88 Damage Taken 1010 | . 161 849 Core 251 | . 38 213 Absorbed by Shields . | . . . Core Remaining (%) 100 | 100 . . Volleys Fired 57 | . 29 28 Largest 2 | . 2 2 Hottest 40 | . 40 40 Shots Fired 112 | . 58 54 Gun 112 | . 58 54 Cannon . | . . . Launcher . | . . . Special . | . . . Kinetic 112 | . 58 54 Thermal . | . . . Explosive . | . . . Electromagnetic . | . . . Robot Hit Streak 10 | . 7 10 Robot Miss Streak 5 | . 3 5 Penetration Max . | . . . Secondary Targets 2 | . . 2 Max Gunslinging Chain 1 | . . 1 Shots Hit Robots 65 | . 31 34 Core Hits 31 | . 18 13 Critical Kills 1 | . 1 . Critical Parts Destroyed . | . . . Critical Strikes 1 | . 1 . Destroy 1 | . 1 . Melee Attacks 2 | . . 2 Impact 2 | . . 2 Slashing . | . . . Piercing . | . . . Sneak Attacks . | . . . Combat Hostiles . | . . . Follow-up Attacks . | . . . Damage Inflicted 611 | . 270 341 Guns 555 | . 270 285 Cannons . | . . . Explosions . | . . . Melee 56 | . . 56 Ramming . | . . . Kinetic 555 | . 270 285 Thermal . | . . . Explosive . | . . . Electromagnetic . | . . . Impact 56 | . . 56 Slashing . | . . . Piercing . | . . . Highest Corruption . | . . . Average Corruption . | . . . Corruption Purged . | . . . Corruption Blocked . | . . . Overload Shots . | . . . Overflow Damage . | . . . Projectiles . | . . . Explosions . | . . . Melee . | . . . Knockbacks 1 | . . 1 Impact 1 | . . 1 Kinetic . | . . . Secondary . | . . . Self-Inflicted Damage . | . . . Shots . | . . . Rammed . | . . . Targets Rammed . | . . . Kicked . | . . . Crushed . | . . . Highest Temperature 9 | . 9 4 Average Temperature 7 | . 8 4 Received Heat Transfer 396 | . 57 339 Siege Activations . | . . . Martial Activations . | . . . Shielding Activations . | . . . Robots Disrupted . | . . . Combat Hostiles . | . . . Robots Corrupted . | . . . Combat Hostiles . | . . . Parts Fried . | . . . Impact Corruptions . | . . . Robots Melted . | . . . Combat Hostiles . | . . . Parts Melted . | . . . Heat Transferred . | . . . Parts Sabotaged . | . . . Parts Stolen . | . . . Parts Stripped . | . . . Power Chain Reactions . | . . . Alert | -11 -10 -10 ------- Run | Yrd Mat Sub Maximum Alert Level . | . . . Low Security (%) 100 | 100 100 . Level 1 . | . . . Level 2 . | . . . Level 3 . | . . . Level 4 . | . . . Level 5 . | . . . High Security . | . . . Max Security . | . . . Peak Influence 95 | . 95 . Initial . | . . . Average 9 | . 10 . Influence Increases 445 | . 205 240 Destroy 0b10 Robot/C 300 | . 160 140 Destroy Leader 40 | . 30 10 Lose Combat Pursuer 105 | . 15 90 Influence Decreases 435 | . 205 230 Time Decay 260 | . 110 150 Lost Part 80 | . . 80 Purge Threat 95 | . 95 . Squads Dispatched 2 | . 2 . Investigation . | . . . Extermination . | . . . Reinforcement 2 | . 2 . Assault . | . . . Garrison . | . . . Intercept . | . . . Searches Triggered . | . . . Construction Impeded . | . . . Haulers Reinforced . | . . . Active Scanning Responses . | . . . Cargo Convoy Interrupts . | . . . Stealth | -11 -10 -10 --------- Run | Yrd Mat Sub Distress Signals 2 | . 2 . Communications Jammed . | . . . Distress Signals . | . . . Times Spotted 31 | . 14 17 Peak Tracking Total 6 | . 3 6 Tactical Retreats 4 | . 1 3 Traps | -11 -10 -10 ------- Run | Yrd Mat Sub Traps Triggered 1 | . . 1 Indirectly . | . . . Trap Hack Attempts . | . . . Triggered . | . . . Disarmed . | . . . Reprogrammed . | . . . Reused . | . . . Traps Extracted . | . . . Installed . | . . . Triggered . | . . . Machines | -11 -10 -10 ---------- Run | Yrd Mat Sub Machines Disabled . | . . . Max in Single Turn . | . . . Machines Repaired . | . . . Machines Dismantled . | . . . Machines Sabotaged . | . . . Overloaded Fab Kills . | . . . Hacking | -11 -10 -10 --------- Run | Yrd Mat Sub Machines Accessed 1 | . 1 . Terminals 1 | . 1 . Fabricators . | . . . Repair Stations . | . . . Recycling Units . | . . . Scanalyzers . | . . . Garrison Access . | . . . Total Hacks 1 | . 1 . Successful 1 | . 1 . Failed . | . . . Catastrophic . | . . . Database Lockouts . | . . . Manual . | . . . Terminals 1 | . 1 . Fabricators . | . . . Repair Stations . | . . . Recycling Units . | . . . Scanalyzers . | . . . Garrison Access . | . . . Terminal Hacks 1 | . 1 . Unreport Threat 1 | . 1 . Fabricator Hacks . | . . . Repair Station Hacks . | . . . Recycling Unit Hacks . | . . . Scanalyzer . | . . . Garrison Access Hacks . | . . . Unauthorized Hacks . | . . . Terminals . | . . . Fabricators . | . . . Repair Stations . | . . . Recycling Units . | . . . Scanalyzers . | . . . Garrison Access . | . . . Data Cores Recovered . | . . . Used . | . . . Hacking Detections . | . . . Full Trace Events . | . . . Feedback Events . | . . . Feedback Blocked . | . . . Robot Schematics Acquired . | . . . Robots Built . | . . . Authchips . | . . . Time . | . . . Total Robot Build Rating . | . . . Part Schematics Acquired . | . . . Parts Built . | . . . Authchips . | . . . Time . | . . . Total Part Build Rating . | . . . Parts Repaired . | . . . Time . | . . . Parts Recycled . | . . . Recycled Matter . | . . . Retrieved Matter . | . . . Retrieved Components . | . . . Parts Scanalyzed . | . . . Part Schematics Acquired . | . . . Parts Damaged . | . . . Bothacking | -11 -10 -10 ------------ Run | Yrd Mat Sub Used RIF Installer . | . . . Robots Hacked . | . . . Non-combat . | . . . Combat . | . . . Robot Hacks Applied . | . . . Relay Couplers Released . | . . . Fabnet Peak Effective % . | . . . Robots Rewired . | . . . Allies Hacked . | . . . Hacks Repelled . | . . . Allies | -11 -10 -10 -------- Run | Yrd Mat Sub Total Allies . | . . . Largest Group . | . . . Highest-Rated Group . | . . . Highest-Rated Ally . | . . . Total Orders . | . . . Ally Attacks . | . . . Total Damage . | . . . Kills . | . . . Allies Corrupted . | . . . Allies Melted . | . . . Intel | -11 -10 -10 ------- Run | Yrd Mat Sub Active Infowar (turns) 287 | . . 287 Sensors 287 | . . 287 Robot Analysis Total . | . . . Derelict Logs Recovered . | . . . Drone Launches . | . . . Drone Recoveries . | . . . Exploration | -11 -10 -10 ------------- Run | Yrd Mat Sub Turns Passed 1616 | 98 885 633 Spaces Moved 791 | 56 371 364 Core 2 | 2 . . Treads 670 | 54 371 245 Legs 119 | . . 119 Wheels . | . . . Hover . | . . . Flight . | . . . Fastest Speed 50 | 50 160 120 Average Speed 154 | 156 160 148 Slowest Speed 190 | 160 160 190 Overloaded Moves . | . . . Propulsion Burnouts . | . . . Robots Hopped . | . . . Potential Cave-ins . | . . . Cave-ins Triggered . | . . . Exploration Rate (%) 32 | 5 76 15 Regions Visited 2 Branch Regions 1 Pre-discovered Areas . | . . . Known Exits Taken . | . . . Unknown Exits Taken 2 | 1 1 . Scrap Searched . | . . . Spaces Dug . | . . . Terrain Destroyed . | . . . Melee . | . . . Projectile . | . . . AOE . | . . . Terrain Rammed . | . . . Walls Destroyed . | . . . Machines Disabled . | . . . Actions | -11 -10 -10 --------- Run | Yrd Mat Sub Total 1091 | 64 615 412 Wait 212 | . 209 3 Move 789 | 55 370 364 Hop . | . . . Pick Up 10 | 3 5 2 Fast Attach 7 | 6 1 . Attach 8 | . . 8 Detach 2 | . . 2 Swap 3 | . 1 2 Drop 1 | . . 1 Fire 57 | . 29 28 Melee 2 | . . 2 Ram . | . . . Kick . | . . . Crush . | . . . Escape Stasis . | . . . Rewire . | . . . Trap . | . . . Miscellaneous . | . . . Route ------- -11/Scrapyard -10/Materials (discovered 4 exits: [*Mat] / [*Min x2] / [*Sub]) -10/Subcaves (discovered 2 exits: [*Mat] / [*Rec]) History --------- Turn | Location | Event 28 | -11/Scrapyard | Discovered new exit (range 16) 99 | -11/Scrapyard | Entered Materials 309 | -10/Materials | Build established: Mutant 356 | -10/Materials | Discovered new exit (range 7) 425 | -10/Materials | Discovered new exit (range 11) 617 | -10/Materials | Discovered new exit (range 5) 963 | -10/Materials | Discovered new exit (range 10) 984 | -10/Materials | Entered Subcaves 985 | -10/Subcaves | Approached by a straggling Scientist 1271 | -10/Subcaves | Discovered new exit (range 10) 1443 | -10/Subcaves | Discovered new exit (range 16) 1471 | -10/Subcaves | Core integrity fell below 50% 1501 | -10/Subcaves | Lost 5 parts (1p1n1u2w) 1613 | -10/Subcaves | Core integrity fell below 20% 1617 | -10/Subcaves | Destroyed by OL-OHT(R) with Subdweller Beam Cannon Last Messages --------------- 01425_ Lgt. Ion Engine fries itself beyond repair. 01426_ Lgt. Assault Rifle fries itself beyond repair. 01427_ Flight Unit fries itself beyond repair. 01440_ Dropped Lrg. Storage Unit. 01443_ EXIT=FOUND 01449_ Lgt. Assault Rifle destroyed. 01474_ Acquired 12 matter. 01478_ Acquired 10 matter. 01480_ Acquired 8 matter. 01512_ Acquired 14 matter. 01517_ Acquired 7 matter. 01522_ Acquired 18 matter. 01580_ Acquired Wheel. 01581_ Subatomizers dissect the Wheel. 01582_ Acquired Wheel. 01588_ Lgt. Ion Engine destroyed. 01592_ Lgt. Assault Rifle destroyed. 01603_ Acquired 11 matter. 01611_ OL-OHT(R) knocked back. 01617_ Aluminum Leg destroyed. Map ----- +----------------------------------------------------+ | ????????????# #????????????????? | | ????????????# ###????????????????? | | ????????????## ##??????????????????? | | ???????????### #???????????????????? | | ???????????# ## ##???????????????????? | | ???????????# #### ##????????????????????? | | ???????????# #??# #?????????????????????? | | ???????????## ##??## ##?????????????????????? | | ???????????# #???# ####??????????????????? | | ???????????## ###### ##""##?????????????????? | | ???????????# ## ;; ""#?????????????????? | | ???????????# ^ ^ #?????????????????? | | ???????????# #?????????????????? | | ???????????# ###" "##?????????????????? | | ???????????# ##?#"; "#??????????????????? | | ???????????## ##??##; "#??????????????????? | | ????????????# ##???### ##??????????????????? | | ????????????####???## #???????????????????? | | ??????????????????## !#???????????????????? | | ??????????????????# %##??????????????????? | | ?????????????????## ## #??????????????????? | | ?????????????????# ###R ##??????????????????? | | ?????????????????## ## #??????????????????? | | ??????????????????# ### ##??????????????????? | | ??????????????????# #?# ##??????????????????? | | ??????????????????# ?##@ #??????????????????? | | ?????????????????? ?# #??????????????????? | | ?????????????????? R #??????????????????? | | ?????????????????# ###??????????????????? | | ?????????????????### #?????????????????????? | | ???????????????????## #??????????????????????? | | ???????????????????? ???????????????????????? | | ???????????????????# ???????????????????????? | | ???????????????????## ??????????????????????? | | ???????????????????? #??????????????????????? | | ???????????????????? =??????????????????????? | | ??????????????????? &%??????????????????????? | | ??????????????????? ?# ???????????????????????? | | ?????????????????? ???????????????????????????? | | ??????????????????????????????????????????????? | | ??????????????????????????????????????????????? | | ??????????????????????????????????????????????? | | ??????????????????????????????????????????????? | | ??????????????????????????????????????????????? | | ??????????????????????????????????????????????? | | ??????????????????????????????????????????????? | | ??????????????????????????????????????????????? | | ??????????????????????????????????????????????? | | ??????????????????????????????????????????????? | | ??????????????????????????????????????????????? | +----------------------------------------------------+ Best States ------------- Heat Dissipation 25 Energy Generation 10 Energy Capacity 125 Matter Stores 300 Matter Capacity 300 Sight Range 16 Robot Scan Range 14 Terrain Scan Density 10 Power Shielding 33 Evasion (%) 55 Targeting Accuracy 5 Recoil Reduction 2 Item Schematics ----------------- None Robot Schematics ------------------ None Fabricated ------------ Nothing Repaired ---------- Nothing Alien Tech Used ----------------- None Achievements -------------- None Challenges ------------ None Game ------ Seed SalvageBoltPrototype Manual? 0 Play Time 00:10:48 Cumulative 47.9 hours Start 2025.05.23 @ 07:57:44 End 2025.05.23 @ 08:06:22 Sessions 1 Manual Loads 0 Difficulty Rogue Special Mode None Game No. 36 Rogue 36 Adventurer 0 Explorer 0 Win Type - Total 4 Types 2/0/1/0/1/0/0/0/0/0 Lore% 43 Gallery% 41 Achievement% 49 Wizard Run 0 Options --------- Layout 0 ASCII 0 Keyboard 1 Movement Vi Keybinds 0 Fullscreen 2 Font 18/SmallcapsGlow Map View 76x50 Zoom Use 0% Tactical HUD 1 Map Filters NONE Filters NONE Steam 1 RUN: 0a5b7a33-1efa-41b7-8bbe-09d10aa14494